Cogmind - Beta 11.1 @@@ ROGUE MODE // 2022.05.03 @ 17:58:24 Player: Olga Result: Self-destructed Performance ------------- Evolutions (2) 1000 Regions Visited (5) 1000 Robots Destroyed (59) 295 Value Destroyed (1509) 1509 Prototype IDs (2) 40 Alien Tech Used (0) 0 Bonus (322) 322 TOTAL SCORE: 4166 Bonus ------- Pacifist 200 High Alert Combat Kills 122 Cogmind --------- Core Integrity 238/550 Matter 193/300 Energy 100/100 System Corruption 6% Temperature Cool (3) Movement Hovering (51) Location -8/Storage Parts ------- > --- POWER (1) -------- (None) > --- PROPULSION (4) --- Improved Hover Unit Aerolev Unit > --- UTILITY (4) ------ Small Storage Unit Targeting Computer Hardened Light Armor Plating High-powered Tractor Beam > --- WEAPON (2) ------- Mini Grenade Launcher Mini Grenade Launcher > --- INVENTORY (8) ---- Light Ion Engine Faulty Aerolev Unit Faulty Aerolev Unit Medium Matter Pod (100) Utility Shielding Shotgun Enhanced Autogun Peak State ------------ > --- POWER ------------ Light Nuclear Core > --- PROPULSION ------- Xenon Bombardment Thruster Xenon Bombardment Thruster Xenon Bombardment Thruster Xenon Bombardment Thruster > --- UTILITY ---------- Small Storage Unit Utility Shielding Light Armor Plating High-powered Tractor Beam > --- WEAPON ----------- Shotgun Enhanced Autogun > --- INVENTORY -------- Light Ion Engine Light Ion Engine Medium Matter Pod Targeting Computer Light Assault Rifle Mini Grenade Launcher Mini Grenade Launcher Mace [Rating: 31] Favorites ----------- Power Improved Ion Engine Engine Improved Ion Engine Power Core Light Nuclear Core Propulsion Light Treads Treads Light Treads Leg Carbon-fiber Leg Wheel Wheel Hover Unit Aerolev Unit Flight Unit Xenon Bombardment Thruster Utility Small Storage Unit Device Heat Sink Storage Small Storage Unit Processor Targeting Computer Protection Utility Shielding Weapon Light Assault Rifle Energy Gun EM Pulse Gun Ballistic Gun Light Assault Rifle Launcher Mini Grenade Launcher Build | -11 -10 -9 -9 -8 -8 ------- Run | Scr Mat Mat Min Mat Sto Slots Evolved 4 | . . 2 . 2 . Power . | . . . . . . Propulsion 2 | . . . . 2 . Utility 2 | . . 2 . . . Weapon . | . . . . . . Parts Attached 53 | 6 . 10 2 32 3 Power 9 | 1 . 1 . 7 . Engine 7 | 1 . 1 . 5 . Core 2 | . . . . 2 . Reactor . | . . . . . . Propulsion 21 | 2 . 4 . 13 2 Treads 6 | . . 4 . 2 . Leg 2 | . . . . 2 . Wheel 2 | 2 . . . . . Hover 7 | . . . . 5 2 Flight 4 | . . . . 4 . Utility 11 | 1 . 3 1 5 1 Device 4 | . . 2 . 2 . Storage 1 | 1 . . . . . Processor 1 | . . . . 1 . Hackware . | . . . . . . Protection 5 | . . 1 1 2 1 Artifact . | . . . . . . Weapon 12 | 2 . 2 1 7 . Energy Gun 2 | 1 . 1 . . . Energy Cannon . | . . . . . . Ballistic Gun 6 | 1 . 1 . 4 . Ballistic Cannon . | . . . . . . Launcher 4 | . . . 1 3 . Special Weapon . | . . . . . . Impact Weapon . | . . . . . . Slashing Weapon . | . . . . . . Piercing Weapon . | . . . . . . Special Melee Weapon . | . . . . . . Unidentified Prototypes 2 | . . . . 2 . Corrupted Parts 1 | . . 1 . . . System Corruption 2 | . . 2 . . . Parts Lost 10 | . . 2 . 4 4 Power 3 | . . . . 2 1 Propulsion 5 | . . 1 . 1 3 Utility 2 | . . 1 . 1 . Weapon . | . . . . . . Highest Loss Streak 2 | . . 1 . 2 2 To Critical Strikes . | . . . . . . Average Slot Usage (%) 89 | . 85 82 92 93 86 Engine 9 | . 14 11 11 5 9 Treads 16 | . . 13 22 16 . Wheel 2 | . 28 8 . . . Hover 3 | . . . . 8 23 Device 17 | . . 13 22 16 14 Storage 10 | . 14 11 11 9 9 Protection 5 | . . 3 3 9 3 Energy Gun 7 | . 14 11 10 . . Ballistic Gun 11 | . 14 11 11 13 . Launcher 2 | . . . . 4 18 Naked Turns . | . . . . . . Heaviest Build 27 | 13 13 27 26 23 16 Greatest Support 80 | 20 20 40 40 80 32 Greatest Overweight (x) 3 | 1 . 2 . 3 . Average Overweight (x) . | . . . . . . Largest Inventory Capacity 8 | 8 8 8 8 8 8 Average Capacity 7 | 7 8 8 8 8 8 Most Carried 8 | 6 6 8 8 8 8 Average Carried 7 | 3 6 7 7 7 7 Final Capacity 8 | 8 8 8 8 8 8 Final Carried 8 | 6 6 8 8 8 7 Class Distribution -------------------- 55% | Scavenger-Mutant 44% | Mutant Dominant Class ---------------- Mutant | -10/Materials Scavenger-Mutant | -9/Materials Scavenger-Mutant | -9/Mines Mutant | -8/Materials Mutant | -8/Storage Resources | -11 -10 -9 -9 -8 -8 ----------- Run | Scr Mat Mat Min Mat Sto Matter Collected 1349 | 228 . 170 19 809 123 Remotely 799 | . . . . 676 123 Salvage Created 1394 | . . 351 16 829 198 Parts 87 | . . 20 6 50 11 Haulers Intercepted 1 | . . . . 1 . Recyclers Shooed 1 | . . 1 . . . Parts Field Recycled . | . . . . . . Retrieved Matter . | . . . . . . Parts Self-Destructed . | . . . . . . Prevented . | . . . . . . Kills | -11 -10 -9 -9 -8 -8 ------- Run | Scr Mat Mat Min Mat Sto Combat Hostiles Destroyed 45 | . . 9 4 23 9 Guns 22 | . . 9 . 13 . AOE 23 | . . . 4 10 9 Classes Destroyed 10 | . . 4 . 6 . Worker 7 | . . . . 6 1 Builder 4 | . . . . 3 1 Hauler 1 | . . . . 1 . Watcher 2 | . . . . 2 . Swarmer 18 | . . 3 4 8 3 Grunt 19 | . . 3 . 11 5 Brawler 1 | . . 1 . . . Duelist 1 | . . . . 1 . Sentry 5 | . . 2 . 2 1 Hunter 1 | . . . . 1 . Best Kill Streak 19 | . . 4 4 13 19 Combat Bots Only 15 | . . 4 4 7 15 Max Kills in Single Turn 3 | . . 1 2 3 3 Gunslinging . | . . . . . . Exploded 2 | . . . 2 2 2 Melee . | . . . . . . Uniques/NPCs Destroyed . | . . . . . . Combat | -11 -10 -9 -9 -8 -8 -------- Run | Scr Mat Mat Min Mat Sto Damage Taken 2371 | . 11 770 61 1074 455 Core 481 | . . 163 6 184 128 Absorbed by Shields . | . . . . . . Redirected to Shielding 17 | . . . 1 16 . Core Remaining (%) 85 | 100 100 . 57 . . Volleys Fired 85 | . . 26 3 45 11 Largest 2 | . . 2 2 2 2 Hottest 60 | . . 60 50 60 60 Shots Fired 170 | . . 52 6 90 22 Gun 129 | . . 52 3 74 . Cannon . | . . . . . . Launcher 41 | . . . 3 16 22 Special . | . . . . . . Kinetic 103 | . . 26 3 74 . Thermal 11 | . . 11 . . . Explosive 41 | . . . 3 16 22 Electromagnetic 15 | . . 15 . . . Robot Hit Streak 14 | . . 14 1 13 . Robot Miss Streak 4 | . . 3 2 4 2 Penetration Max . | . . . . . . Secondary Targets 5 | . . 2 . 3 . Max Gunslinging Chain 1 | . . 1 . 1 . Shots Hit Robots 100 | . . 38 1 61 . Core Hits 112 | . . 17 4 71 20 Critical Kills 1 | . . . . 1 . Critical Parts Destroyed . | . . . . . . Critical Strikes 1 | . . . . 1 . Destroy 1 | . . . . 1 . Melee Attacks . | . . . . . . Impact . | . . . . . . Slashing . | . . . . . . Piercing . | . . . . . . Sneak Attacks . | . . . . . . Combat Hostiles . | . . . . . . Follow-up Attacks . | . . . . . . Damage Inflicted 4004 | . . 483 237 2308 976 Guns 1397 | . . 445 . 952 . Cannons . | . . . . . . Explosions 2603 | . . 34 237 1356 976 Melee . | . . . . . . Ramming 4 | . . 4 . . . Kinetic 1135 | . . 183 . 952 . Thermal 131 | . . 131 . . . Explosive 2569 | . . . 237 1356 976 Electromagnetic 165 | . . 165 . . . Impact . | . . . . . . Slashing . | . . . . . . Piercing . | . . . . . . Highest Corruption 3 | . . 3 3 . 1 Average Corruption 2 | . . 2 3 . 1 Corruption Purged . | . . . . . . Corruption Blocked . | . . . . . . Effects 10 | . . 2 8 . . Message Errors 3 | . . 1 2 . . Matter Fused 2 | . . . 2 . . Energy Discharges 1 | . . . 1 . . Data Loss (minor) 2 | . . 1 1 . . Alerts 2 | . . . 2 . . Overload Shots . | . . . . . . Overflow Damage 48 | . . . 5 29 14 Projectiles . | . . . . . . Explosions 48 | . . . 5 29 14 Melee . | . . . . . . Knockbacks . | . . . . . . Impact . | . . . . . . Kinetic . | . . . . . . Secondary . | . . . . . . Self-Inflicted Damage 167 | . . 40 6 96 25 Shots 8 | . . 1 1 4 2 Rammed 2 | . . 2 . . . Targets Rammed 2 | . . 2 . . . Kicked . | . . . . . . Crushed . | . . . . . . Highest Temperature 129 | . . 129 . 78 24 Average Temperature 37 | . . 49 . 26 10 Received Heat Transfer 672 | . 6 279 . 297 90 Siege Activations . | . . . . . . Robots Corrupted . | . . . . . . Combat Hostiles . | . . . . . . Parts Fried 1 | . . 1 . . . Impact Corruptions . | . . . . . . Robots Melted . | . . . . . . Combat Hostiles . | . . . . . . Parts Melted . | . . . . . . Heat Transferred 325 | . . 325 . . . Parts Sabotaged . | . . . . . . Parts Stolen . | . . . . . . Parts Stripped . | . . . . . . Power Chain Reactions 1 | . . 1 . . . Missiles Intercepted . | . . . . . . Alert | -11 -10 -9 -9 -8 -8 ------- Run | Scr Mat Mat Min Mat Sto Peak Influence 592 | . 29 262 132 592 572 Initial 249 | . . 11 102 51 249 Average 155 | . 5 130 73 276 405 Maximum Alert Level 2 | . . 1 . 2 2 Low Security (%) 72 | 100 100 77 100 38 . Level 1 19 | . . 22 . 42 49 Level 2 7 | . . . . 18 50 Level 3 . | . . . . . . Level 4 . | . . . . . . Level 5 . | . . . . . . High Security . | . . . . . . Max Security . | . . . . . . Squads Dispatched 6 | . . . . 4 2 Investigation 2 | . . . . 1 1 Extermination . | . . . . . . Reinforcement 3 | . . . . 3 . Assault . | . . . . . . Garrison 1 | . . . . . 1 Intercept . | . . . . . . Searches Triggered . | . . . . . . Construction Impeded 1 | . . . . 1 . Haulers Reinforced . | . . . . . . Active Scanning Responses . | . . . . . . Cargo Convoy Interrupts . | . . . . . . Stealth | -11 -10 -9 -9 -8 -8 --------- Run | Scr Mat Mat Min Mat Sto Distress Signals 4 | . . 1 . 3 . Communications Jammed . | . . . . . . Distress Signals . | . . . . . . Times Spotted 69 | . 3 12 4 41 9 Peak Tracking Total 9 | . 3 5 4 9 3 Tactical Retreats 3 | . . 1 . 2 . Traps | -11 -10 -9 -9 -8 -8 ------- Run | Scr Mat Mat Min Mat Sto Traps Triggered 1 | . . . . 1 . Indirectly . | . . . . . . Trap Hack Attempts . | . . . . . . Triggered . | . . . . . . Disarmed . | . . . . . . Reprogrammed . | . . . . . . Reused . | . . . . . . Traps Extracted . | . . . . . . Installed . | . . . . . . Triggered . | . . . . . . Machines | -11 -10 -9 -9 -8 -8 ---------- Run | Scr Mat Mat Min Mat Sto Machines Disabled 3 | . . . . 2 1 Max in Single Turn 1 | . . . . 1 1 Machines Sabotaged . | . . . . . . Garrisons Compromised . | . . . . . . Overloaded Fab Kills . | . . . . . . Hacking | -11 -10 -9 -9 -8 -8 --------- Run | Scr Mat Mat Min Mat Sto Machines Accessed 11 | . 3 3 . 1 4 Terminals 11 | . 3 3 . 1 4 Fabricators . | . . . . . . Repair Stations . | . . . . . . Recycling Units . | . . . . . . Scanalyzers . | . . . . . . Garrison Access . | . . . . . . Total Hacks 28 | . 5 14 . 2 7 Successful 17 | . 3 9 . 2 3 Failed 11 | . 2 5 . . 4 Catastrophic 2 | . . 1 . . 1 Database Lockouts . | . . . . . . Manual 18 | . 3 13 . . 2 Terminals 28 | . 5 14 . 2 7 Fabricators . | . . . . . . Repair Stations . | . . . . . . Recycling Units . | . . . . . . Scanalyzers . | . . . . . . Garrison Access . | . . . . . . Terminal Hacks 13 | . 2 6 . 2 3 Open Door 1 | . . . . . 1 Level Access Points 1 | . 1 . . . . Branch Access Points 1 | . . 1 . . . Terminal Index 1 | . . 1 . . . Unreport Threat 3 | . . 2 . 1 . Locate Traps 1 | . . 1 . . . Zone Layout 5 | . 1 1 . 1 2 Fabricator Hacks . | . . . . . . Repair Station Hacks . | . . . . . . Recycling Unit Hacks . | . . . . . . Scanalyzer . | . . . . . . Garrison Access Hacks . | . . . . . . Unauthorized Hacks 4 | . 1 3 . . . Terminals 4 | . 1 3 . . . Assimilate 1 | . 1 . . . . Botnet 3 | . . 3 . . . Fabricators . | . . . . . . Repair Stations . | . . . . . . Recycling Units . | . . . . . . Scanalyzers . | . . . . . . Garrison Access . | . . . . . . Data Cores Recovered . | . . . . . . Used . | . . . . . . Hacking Detections 8 | . 2 3 . 1 2 Full Trace Events 1 | . . . . . 1 Feedback Events 1 | . . . . . 1 Corruption 1 | . . . . . 1 Feedback Blocked . | . . . . . . Robot Schematics Acquired . | . . . . . . Robots Built . | . . . . . . Authchips . | . . . . . . Time . | . . . . . . Total Robot Build Rating . | . . . . . . Part Schematics Acquired . | . . . . . . Parts Built . | . . . . . . Authchips . | . . . . . . Time . | . . . . . . Total Part Build Rating . | . . . . . . Parts Repaired . | . . . . . . Time . | . . . . . . Parts Recycled . | . . . . . . Recycled Matter . | . . . . . . Retrieved Matter . | . . . . . . Retrieved Components . | . . . . . . Parts Scanalyzed . | . . . . . . Part Schematics Acquired . | . . . . . . Parts Damaged . | . . . . . . Bothacking | -11 -10 -9 -9 -8 -8 ------------ Run | Scr Mat Mat Min Mat Sto Used RIF Installer . | . . . . . . Robots Hacked . | . . . . . . Non-combat . | . . . . . . Combat . | . . . . . . Robot Hacks Applied . | . . . . . . Relay Couplers Released . | . . . . . . Fabnet Peak Effective % . | . . . . . . Robots Rewired . | . . . . . . Allies Hacked . | . . . . . . Hacks Repelled . | . . . . . . Allies | -11 -10 -9 -9 -8 -8 -------- Run | Scr Mat Mat Min Mat Sto Total Allies 1 | . 1 . . . . Largest Group 1 | . 1 1 . . . Highest-Rated Group 10 | . 10 10 . . . Highest-Rated Ally 10 | . 10 10 . . . Total Orders . | . . . . . . Ally Attacks . | . . . . . . Total Damage . | . . . . . . Kills . | . . . . . . Allies Corrupted . | . . . . . . Allies Melted . | . . . . . . Intel | -11 -10 -9 -9 -8 -8 ------- Run | Scr Mat Mat Min Mat Sto Robot Analysis Total . | . . . . . . Derelict Logs Recovered 2 | . . . 2 . . Drone Launches . | . . . . . . Drone Recoveries . | . . . . . . Exploration | -11 -10 -9 -9 -8 -8 ------------- Run | Scr Mat Mat Min Mat Sto Turns Passed 1621 | 63 60 346 594 485 73 Spaces Moved 1108 | 68 72 207 364 319 78 Core 29 | 29 . . . . . Treads 559 | . . 92 364 103 . Legs 29 | . . . . 29 . Wheels 226 | 39 72 115 . . . Hover 221 | . . . . 143 78 Flight 44 | . . . . 44 . Fastest Speed 31 | 50 80 80 160 31 38 Average Speed 112 | 69 80 116 160 87 44 Slowest Speed 280 | 100 80 240 160 280 46 Overloaded Moves . | . . . . . . Propulsion Burnouts . | . . . . . . Robots Hopped 1 | . . . . 1 . Cave-ins Triggered 1 | . . . . . 1 Exploration Rate (%) 28 | 3 23 19 80 30 18 Regions Visited 5 Branch Regions 2 Pre-discovered Areas . | . . . . . . Known Exits Taken 2 | . 1 1 . . . Unknown Exits Taken 3 | 1 . . 1 1 . Scrap Searched 2 | . . . 2 . . Spaces Dug . | . . . . . . Terrain Destroyed 260 | . . 3 24 126 107 Melee . | . . . . . . Projectile . | . . . . . . AOE 260 | . . 3 24 126 107 Terrain Rammed . | . . . . . . Walls Destroyed . | . . . . . . Machines Disabled . | . . . . . . Actions | -11 -10 -9 -9 -8 -8 --------- Run | Scr Mat Mat Min Mat Sto Total 1327 | 82 74 261 370 447 93 Wait 23 | . 3 7 1 12 . Move 1100 | 67 71 206 363 316 77 Hop 1 | . . . . 1 . Pick Up 27 | 9 . 4 1 13 . Fast Attach 28 | 3 . 5 . 19 1 Attach 8 | 3 . . 1 3 1 Detach . | . . . . . . Swap 17 | . . 5 1 10 1 Drop 35 | . . 6 . 28 1 Fire 85 | . . 26 3 45 11 Melee . | . . . . . . Ram . | . . . . . . Kick . | . . . . . . Crush 2 | . . 2 . . . Escape Stasis 1 | . . . . . 1 Rewire . | . . . . . . Trap . | . . . . . . Miscellaneous . | . . . . . . Route ------- -11/Scrapyard -10/Materials (discovered 3 exits: *Mat x3) -9/Materials -9/Mines -8/Materials -8/Storage History --------- Turn | Location | Event 3 | -11/Scrapyard | Discovered new exit (range 15) 64 | -11/Scrapyard | Entered Materials 102 | -10/Materials | Discovered new exit (range 16) 120 | -10/Materials | Identified exit to Materials 124 | -10/Materials | Entered another Materials area 124 | -9/Materials | Accompanied by 1 ally 124 | -9/Materials | Evolved 2 slots: Utility x2 132 | -9/Materials | Identified exit to Mines 470 | -9/Materials | Entered Mines 571 | -9/Mines | Build established: Scavenger-Mutant 638 | -9/Mines | Learned Materials emergency access door positions 731 | -9/Mines | Learned Materials stockpile data 982 | -9/Mines | YI-UF0 nonchalantly dropped a Grenade Launcher on the ground 1047 | -9/Mines | Discovered new exit (range 9) 1064 | -9/Mines | Entered Materials 1064 | -8/Materials | Evolved 2 slots: Propulsion x2 1275 | -8/Materials | Destroyed 7 combat bots 1494 | -8/Materials | Destroyed 7 combat bots 1534 | -8/Materials | Discovered new exit (range 10) 1549 | -8/Materials | Entered Storage 1577 | -8/Storage | Garrison activated, responded to threat 1622 | -8/Storage | Crushed by falling debris 1622 | -8/Storage | Self-destructed Last Messages --------------- 01610_ Y-45 Defender destroyed. 01614_ Acquired 14 matter. 01615_ Connecting with Terminal... >>Layout(Zone) Retrieving Zone 1U layout... Downloaded map data. 01618_ U-05 Engineer builds a Wall. 01618_ Connecting with Terminal... >>Layout(Zone) Retrieving Zone 3Y layout... Downloaded map data. Feedback: System corruption (+1%). 01618_ ALERT: Suspicious activity at Terminal S016. Dispatching Investigation squad. 01622_ The unstable cave ceiling collapses. 01622_ Crushed by falling debris. 01622_ Aerolev Unit destroyed. 01622_ System corrupted by crushing effect (+2). 01622_ Lgt. Ion Engine destroyed. 01622_ System corrupted by crushing effect (+3). Map ----- +----------------------------------------------------+ | ?????????????????????????????????????????????????? | | ???????? ## # ??????????? | | ????????""" ## """" + ??????????? | | ???????? G" ## " " # ??????????? | | ?? #????""" ## " " # ########## ??????????? | | " ????? ## " " #######????????##??????????? | | ??????? ## " " #???????????????#??????????? | | #????######### """" #???????????????#??????????? | | ###### [ # #???????????????#??????????? | | # " = ##/######???????????????#??????????? | | # [ # #????????????????????#??????????? | | # % [ # ######################??????????? | | # # ??????????? | | #### # ## # ??????????? | | | ??????????? | | #####+##################??????????? | | T ###?????#### ??????????? | | + """"" ""#?????#""" ??????????? | | #### # ## """"" ""#?????#"R ??????????? | | #??### ## """"" T"#?????#""" ??????????? | | #??## ## ! ""#?????# "" ??????????? | | + ## ""###???#### ??????????? | | ######## ]## # ##?????# ??????????? | | ???????# ] ## #?????# ??????????? | | ???????# !###""T"" # #?????# ??????????? | | ???????########?#""""" @ #?????###??????????? | | ????????????????###### #??????????????????? | | | | | | | | | | | | | | | | | | | | | | | | | | | | | | | | | | | | | | | | | | | | | | | +----------------------------------------------------+ Best States ------------- Heat Dissipation 53 Energy Generation 14 Energy Capacity 265 Matter Stores 300 Matter Capacity 300 Sight Range 16 Terrain Scan Density 10 Armor Coverage 150 Utility Shielding 33 Evasion (%) 63 Targeting Accuracy 5 Recoil Reduction 4 Item Schematics ----------------- None Robot Schematics ------------------ None Fabricated ------------ Nothing Alien Tech Used ----------------- None Achievements -------------- None Challenges ------------ None Game ------ Seed MachineStealthCycler Manual? 0 Play Time 00:30:05 Cumulative 173.1 hours Start 2022.05.03 @ 14:34:14 End 2022.05.03 @ 17:58:24 Sessions 1 Manual Loads 0 Difficulty Rogue Special Mode None Game No. 302 Rogue 301 Adventurer 0 Explorer 1 Win Type - Total 8 Types 8/0/0/0/0/0/0/0/0 Lore% 61 Gallery% 64 Achievement% 53 Wizard Run 0 Options --------- ASCII 1 Keyboard 0 Movement Vi Keybinds 0 Fullscreen 1 Font 18/SmallcapsGlow Map View 76x50 Tactical HUD 1 Map Filters NONE Filters NONE Steam 1 RUN: 381e3ffb-5c40-48bc-bd06-b7019e95ca27